[Event "*** Titled Tuesday Blitz"]
[Site "Chess.com"]
[Date "2020.04.07"]
[Round "1"]
[White "canwedoit"]
[Black "Training_Day"]
[Result "1-0"]
[WhiteElo "2635"]
[BlackElo "2304"]
[TimeControl "180+1"]
[EndTime "13:07:27 PDT"]
[Termination "canwedoit won on time"]

1. d4 {[%clk 0:03:00.3]} 1... Nf6 {[%clk 0:02:59.5]} 2. Nf3 {[%clk 0:02:58.1]}
2... d5 {[%clk 0:02:57.6]} 3. Bf4 {[%clk 0:02:57.6]} 3... e6 {[%clk 0:02:57.1]}
4. e3 {[%clk 0:02:57.6]} 4... Bd6 {[%clk 0:02:57.1]} 5. Bg3 {[%clk 0:02:57.7]}
5... O-O {[%clk 0:02:56.8]} 6. Bd3 {[%clk 0:02:55.6]} 6... b6 {[%clk 0:02:57.1]}
7. O-O {[%clk 0:02:49.7]} 7... Bb7 {[%clk 0:02:57.3]} 8. Nbd2 {[%clk 0:02:49.3]}
8... Ne4 {[%clk 0:02:56.5]} 9. c3 {[%clk 0:02:46.9]} 9... c5 {[%clk 0:02:48]}
10. Qb1 {[%clk 0:02:43.9]} 10... Bxg3 {[%clk 0:02:37.1]} 11. hxg3 {[%clk
0:02:42.9]} 11... f5 {[%clk 0:02:33.8]} 12. Qc2 {[%clk 0:02:19]} 12... Nd7
{[%clk 0:02:32.6]} 13. a4 {[%clk 0:02:16.8]} 13... a6 {[%clk 0:02:30.2]} 14.
Rae1 {[%clk 0:01:14.7]} 14... Rc8 {[%clk 0:02:29.3]} 15. Qd1 {[%clk 0:01:12.6]}
15... Qf6 {[%clk 0:02:23.9]} 16. Qe2 {[%clk 0:01:07.6]} 16... c4 {[%clk
0:02:23.1]} 17. Bb1 {[%clk 0:01:07.5]} 17... b5 {[%clk 0:02:20.9]} 18. a5 {[%clk
0:01:04.2]} 18... Bc6 {[%clk 0:02:12.5]} 19. Bc2 {[%clk 0:00:53.5]} 19... Rb8
{[%clk 0:02:11.3]} 20. Nxe4 {[%clk 0:00:49.2]} 20... dxe4 {[%clk 0:01:44.7]} 21.
Nd2 {[%clk 0:00:47.2]} 21... e5 {[%clk 0:01:39.4]} 22. f3 {[%clk 0:00:44.8]}
22... exf3 {[%clk 0:01:34.4]} 23. Nxf3 {[%clk 0:00:44.7]} 23... e4 {[%clk
0:01:28.4]} 24. Nh4 {[%clk 0:00:44.8]} 24... Qg5 {[%clk 0:01:23.6]} 25. Qf2
{[%clk 0:00:39.7]} 25... g6 {[%clk 0:01:17.6]} 26. Qf4 {[%clk 0:00:37.2]} 26...
Qe7 {[%clk 0:00:53.9]} 27. Qh6 {[%clk 0:00:30.2]} 27... Nf6 {[%clk 0:00:49.8]}
28. Qg5 {[%clk 0:00:29.2]} 28... Qg7 {[%clk 0:00:45.5]} 29. Qf4 {[%clk
0:00:25.5]} 29... Ng4 {[%clk 0:00:42.4]} 30. Qd6 {[%clk 0:00:23.5]} 30... Qd7
{[%clk 0:00:35.6]} 31. Qf4 {[%clk 0:00:21.8]} 31... Rbd8 {[%clk 0:00:28.8]} 32.
Bd1 {[%clk 0:00:21.8]} 32... Nf6 {[%clk 0:00:25.1]} 33. Qg5 {[%clk 0:00:22.1]}
33... Qg7 {[%clk 0:00:24.3]} 34. g4 {[%clk 0:00:18.3]} 34... fxg4 {[%clk
0:00:15.2]} 35. Bxg4 {[%clk 0:00:16.2]} 35... h6 {[%clk 0:00:13.3]} 36. Be6+
{[%clk 0:00:16.7]} 36... Kh7 {[%clk 0:00:12.8]} 37. Qg3 {[%clk 0:00:14.7]} 37...
Nh5 {[%clk 0:00:09.7]} 38. Qg4 {[%clk 0:00:13.8]} 38... Nf6 {[%clk 0:00:07.4]}
39. Qh3 {[%clk 0:00:14.3]} 39... Bd5 {[%clk 0:00:04.9]} 40. Nxg6 {[%clk
0:00:09.8]} 1-0

[Event "*** Titled Tuesday Blitz"]
[Site "Chess.com"]
[Date "2020.04.07"]
[Round "1"]
[White "Angel_Hranitel_37"]
[Black "stefan_95"]
[Result "1-0"]
[WhiteElo "2332"]
[BlackElo "2633"]
[TimeControl "180+1"]
[EndTime "13:07:29 PDT"]
[Termination "Angel_Hranitel_37 won by resignation"]

1. d4 {[%clk 0:03:00]} 1... Nf6 {[%clk 0:02:57.7]} 2. Nf3 {[%clk 0:02:56.7]}
2... e6 {[%clk 0:02:52.7]} 3. g3 {[%clk 0:02:55.8]} 3... b5 {[%clk 0:02:52.2]}
4. Bg2 {[%clk 0:02:55.5]} 4... Bb7 {[%clk 0:02:52.1]} 5. O-O {[%clk 0:02:55.8]}
5... c5 {[%clk 0:02:51.8]} 6. dxc5 {[%clk 0:02:44.1]} 6... Bxc5 {[%clk
0:02:49.5]} 7. b3 {[%clk 0:02:43.8]} 7... O-O {[%clk 0:02:49]} 8. Bb2 {[%clk
0:02:43.9]} 8... d5 {[%clk 0:02:48.2]} 9. Ne5 {[%clk 0:02:33.3]} 9... Nbd7
{[%clk 0:02:45.3]} 10. Nxd7 {[%clk 0:02:32.2]} 10... Nxd7 {[%clk 0:02:44]} 11.
Nd2 {[%clk 0:02:11.7]} 11... Nf6 {[%clk 0:02:39.8]} 12. c4 {[%clk 0:02:09.3]}
12... bxc4 {[%clk 0:02:37.6]} 13. Nxc4 {[%clk 0:02:06.7]} 13... Rc8 {[%clk
0:02:31.7]} 14. Ne5 {[%clk 0:02:01.6]} 14... Qe7 {[%clk 0:02:28.3]} 15. e3
{[%clk 0:01:58.8]} 15... Ba3 {[%clk 0:02:20]} 16. Bd4 {[%clk 0:01:58.1]} 16...
a5 {[%clk 0:02:16.4]} 17. h4 {[%clk 0:01:51.3]} 17... Ba6 {[%clk 0:02:14.6]} 18.
Re1 {[%clk 0:01:04.4]} 18... Bb4 {[%clk 0:02:13.7]} 19. Bf1 {[%clk 0:01:04.7]}
19... Bxf1 {[%clk 0:02:03.3]} 20. Rxf1 {[%clk 0:01:04.2]} 20... Ne4 {[%clk
0:02:03.7]} 21. Kg2 {[%clk 0:00:50.4]} 21... f6 {[%clk 0:02:01.1]} 22. Nd3
{[%clk 0:00:50.4]} 22... Ba3 {[%clk 0:01:55.8]} 23. f3 {[%clk 0:00:38.2]} 23...
Nc3 {[%clk 0:01:55.5]} 24. Qd2 {[%clk 0:00:38.4]} 24... Nb5 {[%clk 0:01:53.5]}
25. Qxa5 {[%clk 0:00:33]} 25... Nxd4 {[%clk 0:01:51.5]} 26. exd4 {[%clk
0:00:33.9]} 26... Rc2+ {[%clk 0:01:49.1]} 27. Rf2 {[%clk 0:00:34.2]} 27... Rfc8
{[%clk 0:01:47.3]} 28. Rf1 {[%clk 0:00:33.8]} 28... Bd6 {[%clk 0:01:35.9]} 29.
Rxc2 {[%clk 0:00:29.2]} 29... Rxc2+ {[%clk 0:01:35.8]} 30. Rf2 {[%clk
0:00:29.7]} 30... Rxf2+ {[%clk 0:01:36.2]} 31. Kxf2 {[%clk 0:00:29.3]} 31... h5
{[%clk 0:01:36.1]} 32. b4 {[%clk 0:00:24.9]} 32... g5 {[%clk 0:01:24.9]} 33. b5
{[%clk 0:00:21.7]} 33... gxh4 {[%clk 0:01:24.9]} 34. gxh4 {[%clk 0:00:22.6]}
34... f5 {[%clk 0:01:21.5]} 35. b6 {[%clk 0:00:14.6]} 35... Qxh4+ {[%clk
0:01:21.4]} 36. Ke2 {[%clk 0:00:15.1]} 36... Qxd4 {[%clk 0:01:12.9]} 37. b7
{[%clk 0:00:12.8]} 37... Kf7 {[%clk 0:00:44.5]} 38. Qd8 {[%clk 0:00:09.9]} 38...
Qb6 {[%clk 0:00:44.9]} 39. Qxb6 {[%clk 0:00:09.8]} 39... Bg3 {[%clk 0:00:41.2]}
40. b8=Q {[%clk 0:00:08.2]} 40... Bxb8 {[%clk 0:00:40.5]} 41. Qxb8 {[%clk
0:00:09.1]} 41... Kg6 {[%clk 0:00:41.4]} 42. a4 {[%clk 0:00:09.7]} 42... h4
{[%clk 0:00:35.5]} 43. a5 {[%clk 0:00:10.6]} 43... Kg5 {[%clk 0:00:36.1]} 44. a6
{[%clk 0:00:11.3]} 44... f4 {[%clk 0:00:37]} 45. a7 {[%clk 0:00:11.8]} 45... h3
{[%clk 0:00:37.6]} 46. Qxf4+ {[%clk 0:00:12.7]} 1-0

[Event "*** Titled Tuesday Blitz"]
[Site "Chess.com"]
[Date "2020.04.07"]
[Round "1"]
[White "serhanberat_ozdemir"]
[Black "Khamrakulov_Djurabek"]
[Result "0-1"]
[WhiteElo "2465"]
[BlackElo "2905"]
[TimeControl "180+1"]
[EndTime "13:07:31 PDT"]
[Termination "Khamrakulov_Djurabek won by resignation"]

1. e4 {[%clk 0:02:56.7]} 1... c6 {[%clk 0:02:59.8]} 2. d4 {[%clk 0:02:56.7]}
2... d5 {[%clk 0:02:59.4]} 3. exd5 {[%clk 0:02:57.6]} 3... cxd5 {[%clk
0:02:59.4]} 4. c4 {[%clk 0:02:58.2]} 4... Nf6 {[%clk 0:02:59.5]} 5. Nc3 {[%clk
0:02:58.5]} 5... e6 {[%clk 0:03:00]} 6. Nf3 {[%clk 0:02:58.4]} 6... Bb4 {[%clk
0:02:59.9]} 7. Bd3 {[%clk 0:02:57]} 7... Nc6 {[%clk 0:02:58]} 8. O-O {[%clk
0:02:56.6]} 8... dxc4 {[%clk 0:02:56.6]} 9. Bxc4 {[%clk 0:02:57.5]} 9... O-O
{[%clk 0:02:54.4]} 10. Bg5 {[%clk 0:02:47.3]} 10... h6 {[%clk 0:02:50.5]} 11.
Bh4 {[%clk 0:02:46.2]} 11... Bxc3 {[%clk 0:02:44.6]} 12. bxc3 {[%clk 0:02:45]}
12... b6 {[%clk 0:02:44.7]} 13. Qe2 {[%clk 0:02:37.5]} 13... Bb7 {[%clk
0:02:41.4]} 14. Rac1 {[%clk 0:02:32.1]} 14... Rc8 {[%clk 0:02:40.3]} 15. Bd3
{[%clk 0:02:29.9]} 15... Ne7 {[%clk 0:02:31.5]} 16. Bxf6 {[%clk 0:02:18.5]}
16... gxf6 {[%clk 0:02:32.4]} 17. Nd2 {[%clk 0:01:21.8]} 17... f5 {[%clk
0:02:26.4]} 18. Qh5 {[%clk 0:01:12.4]} 18... Kg7 {[%clk 0:02:25.1]} 19. Rfe1
{[%clk 0:01:08.6]} 19... Nd5 {[%clk 0:02:20.1]} 20. Qh3 {[%clk 0:00:38.7]} 20...
Nxc3 {[%clk 0:02:03.5]} 21. Qg3+ {[%clk 0:00:36.4]} 21... Qg5 {[%clk 0:02:02.2]}
22. Bc4 {[%clk 0:00:34.9]} 22... Qxg3 {[%clk 0:01:43.8]} 23. hxg3 {[%clk
0:00:35.8]} 23... Ne4 {[%clk 0:01:40.7]} 24. Nxe4 {[%clk 0:00:33.1]} 24... fxe4
{[%clk 0:01:34.5]} 25. Bb5 {[%clk 0:00:29.6]} 25... Rfd8 {[%clk 0:01:28.7]} 26.
Rxc8 {[%clk 0:00:29.6]} 26... Rxc8 {[%clk 0:01:29.6]} 27. a4 {[%clk 0:00:27.7]}
27... Rd8 {[%clk 0:01:23.2]} 28. Rd1 {[%clk 0:00:22.2]} 28... e5 {[%clk
0:01:23.1]} 29. d5 {[%clk 0:00:22.2]} 29... Rxd5 {[%clk 0:01:22.2]} 30. Rxd5
{[%clk 0:00:21.1]} 30... Bxd5 {[%clk 0:01:21.7]} 31. g4 {[%clk 0:00:21.1]} 31...
Kf6 {[%clk 0:01:09.2]} 32. Kh2 {[%clk 0:00:19.5]} 32... Kg5 {[%clk 0:01:08.7]}
33. Kg3 {[%clk 0:00:18.8]} 33... h5 {[%clk 0:01:08.8]} 34. gxh5 {[%clk 0:00:17]}
34... Kxh5 {[%clk 0:01:09.7]} 35. Kh3 {[%clk 0:00:15.2]} 35... f5 {[%clk
0:01:08]} 36. g4+ {[%clk 0:00:13.3]} 36... fxg4+ {[%clk 0:01:04.8]} 37. Kg3
{[%clk 0:00:14]} 37... Be6 {[%clk 0:01:02.6]} 38. Be2 {[%clk 0:00:12]} 38... Kg5
{[%clk 0:01:01.9]} 39. Bb5 {[%clk 0:00:10.5]} 39... a5 {[%clk 0:01:01.7]} 40.
Be8 {[%clk 0:00:08.8]} 40... Kf6 {[%clk 0:00:58.6]} 41. Kh4 {[%clk 0:00:07.5]}
41... Ke7 {[%clk 0:00:57.1]} 42. Bg6 {[%clk 0:00:06.4]} 42... Bd7 {[%clk
0:00:50.1]} 43. Bxe4 {[%clk 0:00:06.5]} 43... Bxa4 {[%clk 0:00:49.7]} 44. Kxg4
{[%clk 0:00:05.4]} 44... Kd6 {[%clk 0:00:49.7]} 45. Bd3 {[%clk 0:00:04.1]} 45...
Kc5 {[%clk 0:00:49.2]} 46. Kf5 {[%clk 0:00:05]} 46... Kd4 {[%clk 0:00:48.8]} 47.
Be2 {[%clk 0:00:03.8]} 47... b5 {[%clk 0:00:47.9]} 48. f4 {[%clk 0:00:02.9]}
48... Bc2+ {[%clk 0:00:47.5]} 49. Kg5 {[%clk 0:00:01.8]} 0-1

[Event "*** Titled Tuesday Blitz"]
[Site "Chess.com"]
[Date "2020.04.07"]
[Round "1"]
[White "dmvlad"]
[Black "Kavyev_Ruslan"]
[Result "1-0"]
[WhiteElo "2317"]
[BlackElo "2615"]
[TimeControl "180+1"]
[EndTime "13:07:31 PDT"]
[Termination "dmvlad won by resignation"]

1. e4 {[%clk 0:02:53.9]} 1... c5 {[%clk 0:02:58.9]} 2. Nf3 {[%clk 0:02:48.5]}
2... d6 {[%clk 0:02:59.2]} 3. Bb5+ {[%clk 0:02:43.7]} 3... Nd7 {[%clk
0:02:57.5]} 4. d4 {[%clk 0:02:42.4]} 4... cxd4 {[%clk 0:02:57.5]} 5. Qxd4 {[%clk
0:02:43.3]} 5... a6 {[%clk 0:02:58.2]} 6. Bxd7+ {[%clk 0:02:43]} 6... Bxd7
{[%clk 0:02:59.1]} 7. O-O {[%clk 0:02:43.5]} 7... e5 {[%clk 0:02:58.9]} 8. Qd3
{[%clk 0:02:42.8]} 8... h6 {[%clk 0:02:59.5]} 9. Nc3 {[%clk 0:02:41.9]} 9... Nf6
{[%clk 0:02:59.1]} 10. a4 {[%clk 0:02:42.1]} 10... Be7 {[%clk 0:02:59.3]} 11.
Nd2 {[%clk 0:02:42.2]} 11... Be6 {[%clk 0:02:58.7]} 12. a5 {[%clk 0:02:40.6]}
12... Rc8 {[%clk 0:02:58.7]} 13. Rd1 {[%clk 0:02:39.3]} 13... d5 {[%clk
0:02:49]} 14. Qg3 {[%clk 0:01:53.7]} 14... d4 {[%clk 0:02:32.8]} 15. Na4 {[%clk
0:01:45.9]} 15... Qxa5 {[%clk 0:02:26.9]} 16. Qxg7 {[%clk 0:01:42.1]} 16... Rg8
{[%clk 0:02:23.9]} 17. Qxh6 {[%clk 0:01:41.6]} 17... b5 {[%clk 0:02:15.7]} 18.
Nb3 {[%clk 0:01:40.9]} 18... Bxb3 {[%clk 0:02:15.6]} 19. Bd2 {[%clk 0:01:29.2]}
19... Qc7 {[%clk 0:01:43]} 20. cxb3 {[%clk 0:01:28.1]} 20... bxa4 {[%clk
0:01:42.5]} 21. Rxa4 {[%clk 0:01:25.7]} 21... Qb7 {[%clk 0:01:40.6]} 22. Re1
{[%clk 0:01:16.3]} 22... Nxe4 {[%clk 0:01:34.3]} 23. Qh7 {[%clk 0:01:14.1]}
23... Nf6 {[%clk 0:01:33.9]} 24. Qh3 {[%clk 0:01:12.9]} 24... Rc2 {[%clk
0:01:29.5]} 25. Ba5 {[%clk 0:01:03.4]} 25... Rxb2 {[%clk 0:01:20.5]} 26. g3
{[%clk 0:00:59.4]} 26... e4 {[%clk 0:01:10.7]} 27. Rxd4 {[%clk 0:00:56.7]} 27...
Rxb3 {[%clk 0:01:05.9]} 28. Red1 {[%clk 0:00:48.8]} 28... Rd3 {[%clk 0:00:53.9]}
29. Qf5 {[%clk 0:00:42.2]} 29... Rxd4 {[%clk 0:00:32.1]} 30. Rxd4 {[%clk
0:00:41.6]} 30... Rg6 {[%clk 0:00:31.2]} 31. Qe5 {[%clk 0:00:35.2]} 31... Kf8
{[%clk 0:00:30.3]} 32. Rd1 {[%clk 0:00:30.6]} 32... Kg7 {[%clk 0:00:30.3]} 33.
Bc3 {[%clk 0:00:30.6]} 33... Kg8 {[%clk 0:00:25.9]} 34. h4 {[%clk 0:00:29.6]}
34... Bf8 {[%clk 0:00:20.2]} 35. h5 {[%clk 0:00:29.1]} 35... Rh6 {[%clk
0:00:20.9]} 36. Qg5+ {[%clk 0:00:28]} 36... Bg7 {[%clk 0:00:20.4]} 37. Rd8+
{[%clk 0:00:27.4]} 37... Kh7 {[%clk 0:00:16.7]} 38. Qf5+ {[%clk 0:00:27.4]}
38... Rg6 {[%clk 0:00:17.4]} 39. hxg6+ {[%clk 0:00:27.6]} 39... fxg6 {[%clk
0:00:18.3]} 40. Qh3+ {[%clk 0:00:26.8]} 40... Nh5 {[%clk 0:00:19]} 41. Bxg7
{[%clk 0:00:26]} 41... Qxg7 {[%clk 0:00:19.5]} 42. Rd7 {[%clk 0:00:26.2]} 1-0

[Event "*** Titled Tuesday Blitz"]
[Site "Chess.com"]
[Date "2020.04.07"]
[Round "1"]
[White "BvsN"]
[Black "Ellaijio_B"]
[Result "0-1"]
[WhiteElo "2287"]
[BlackElo "2621"]
[TimeControl "180+1"]
[EndTime "13:07:31 PDT"]
[Termination "Ellaijio_B won by resignation"]

1. d4 {[%clk 0:03:00.9]} 1... Nf6 {[%clk 0:02:59.5]} 2. c4 {[%clk 0:03:00.5]}
2... c5 {[%clk 0:02:59.7]} 3. d5 {[%clk 0:03:00.1]} 3... e6 {[%clk 0:02:59.9]}
4. Nc3 {[%clk 0:02:59.5]} 4... exd5 {[%clk 0:03:00.4]} 5. cxd5 {[%clk
0:03:00.4]} 5... d6 {[%clk 0:03:01]} 6. e4 {[%clk 0:03:00.8]} 6... g6 {[%clk
0:03:01.3]} 7. Nge2 {[%clk 0:03:01.1]} 7... Bg7 {[%clk 0:03:01.8]} 8. Ng3 {[%clk
0:03:01.3]} 8... h5 {[%clk 0:03:01.5]} 9. Be2 {[%clk 0:02:58.8]} 9... h4 {[%clk
0:03:01.3]} 10. Nf1 {[%clk 0:02:58.8]} 10... a6 {[%clk 0:02:59.6]} 11. a4 {[%clk
0:02:58.1]} 11... Nbd7 {[%clk 0:02:58]} 12. Bg5 {[%clk 0:02:57.9]} 12... Qa5
{[%clk 0:02:49.9]} 13. Nd2 {[%clk 0:02:51.6]} 13... h3 {[%clk 0:02:35.6]} 14. g3
{[%clk 0:02:48.5]} 14... Nh7 {[%clk 0:02:28.4]} 15. Nc4 {[%clk 0:02:32.5]} 15...
Qc7 {[%clk 0:02:26.8]} 16. Bf4 {[%clk 0:02:26.4]} 16... Ne5 {[%clk 0:02:20.9]}
17. Nxe5 {[%clk 0:02:11.2]} 17... dxe5 {[%clk 0:02:16]} 18. Be3 {[%clk
0:02:03.9]} 18... O-O {[%clk 0:02:11]} 19. O-O {[%clk 0:02:02.5]} 19... Bd7
{[%clk 0:02:09]} 20. a5 {[%clk 0:01:42.6]} 20... b5 {[%clk 0:01:59.6]} 21. axb6
{[%clk 0:01:41.3]} 21... Qxb6 {[%clk 0:01:59.6]} 22. Rb1 {[%clk 0:01:37.9]}
22... a5 {[%clk 0:01:56.8]} 23. Qd2 {[%clk 0:01:31.5]} 23... Rfc8 {[%clk
0:01:55.9]} 24. Rfc1 {[%clk 0:01:30.8]} 24... Nf6 {[%clk 0:01:45.5]} 25. f3
{[%clk 0:01:15.8]} 25... Bf8 {[%clk 0:01:39.6]} 26. Nd1 {[%clk 0:01:09.6]} 26...
Qb4 {[%clk 0:01:38.2]} 27. Qc2 {[%clk 0:01:07.7]} 27... a4 {[%clk 0:01:34.7]}
28. Bd2 {[%clk 0:01:07.2]} 28... Qb6 {[%clk 0:01:33.2]} 29. Ne3 {[%clk
0:01:02.3]} 29... c4 {[%clk 0:01:24.2]} 30. Kf1 {[%clk 0:01:00]} 30... Bb5
{[%clk 0:01:16.8]} 31. Nd1 {[%clk 0:00:52.1]} 31... Bc5 {[%clk 0:01:07.3]} 32.
Be1 {[%clk 0:00:48]} 32... Nd7 {[%clk 0:00:58.8]} 33. Bf2 {[%clk 0:00:48]} 33...
Bd4 {[%clk 0:00:46.5]} 34. Kg1 {[%clk 0:00:26.8]} 34... Nc5 {[%clk 0:00:42]} 35.
Bf1 {[%clk 0:00:16.3]} 35... Nd3 {[%clk 0:00:35.6]} 36. Bxd3 {[%clk 0:00:16.3]}
36... cxd3 {[%clk 0:00:36.5]} 37. Qxc8+ {[%clk 0:00:16.2]} 37... Rxc8 {[%clk
0:00:36.8]} 38. Rxc8+ {[%clk 0:00:16.3]} 38... Kg7 {[%clk 0:00:37.7]} 39. Rbc1
{[%clk 0:00:12]} 39... d2 {[%clk 0:00:30.6]} 40. R1c2 {[%clk 0:00:12.1]} 40...
Bxf2+ {[%clk 0:00:30.8]} 41. Kh1 {[%clk 0:00:06.9]} 41... Be2 {[%clk 0:00:25.4]}
0-1

[Event "*** Titled Tuesday Blitz"]
[Site "Chess.com"]
[Date "2020.04.07"]
[Round "1"]
[White "PawnEatingZombie"]
[Black "Sawyer2908"]
[Result "0-1"]
[WhiteElo "2136"]
[BlackElo "2533"]
[TimeControl "180+1"]
[EndTime "13:07:31 PDT"]
[Termination "Sawyer2908 won on time"]

1. d4 {[%clk 0:03:00.9]} 1... Nf6 {[%clk 0:02:59.1]} 2. c4 {[%clk 0:03:00.4]}
2... e6 {[%clk 0:02:58.4]} 3. Nc3 {[%clk 0:03:00.6]} 3... Bb4 {[%clk 0:02:57.6]}
4. Qc2 {[%clk 0:03:00.3]} 4... O-O {[%clk 0:02:56.4]} 5. e4 {[%clk 0:02:59.5]}
5... d5 {[%clk 0:02:55.7]} 6. e5 {[%clk 0:02:59.1]} 6... Ne4 {[%clk 0:02:55.5]}
7. Bd3 {[%clk 0:02:59.5]} 7... c5 {[%clk 0:02:55.7]} 8. Nf3 {[%clk 0:02:59.8]}
8... Nd7 {[%clk 0:02:52.4]} 9. O-O {[%clk 0:02:57.7]} 9... cxd4 {[%clk
0:02:50.8]} 10. Nxe4 {[%clk 0:02:57.1]} 10... dxe4 {[%clk 0:02:42.3]} 11. Bxe4
{[%clk 0:02:56.6]} 11... f5 {[%clk 0:02:34.7]} 12. exf6 {[%clk 0:02:55.5]} 12...
Nxf6 {[%clk 0:02:34.8]} 13. Bg5 {[%clk 0:02:47]} 13... h6 {[%clk 0:02:33]} 14.
Bh4 {[%clk 0:02:45.6]} 14... Bc5 {[%clk 0:02:09.1]} 15. Rad1 {[%clk 0:02:39.4]}
15... Qb6 {[%clk 0:01:55.2]} 16. a3 {[%clk 0:01:51.3]} 16... a5 {[%clk
0:01:54.2]} 17. Ne5 {[%clk 0:01:46.5]} 17... Nxe4 {[%clk 0:01:31.7]} 18. Qxe4
{[%clk 0:01:45.4]} 18... Rf5 {[%clk 0:01:28.2]} 19. Nd3 {[%clk 0:01:21.1]} 19...
Bf8 {[%clk 0:00:50.8]} 20. Bg3 {[%clk 0:01:16.4]} 20... Bd7 {[%clk 0:00:47.4]}
21. b4 {[%clk 0:01:05]} 21... axb4 {[%clk 0:00:45.5]} 22. axb4 {[%clk
0:01:04.4]} 22... Re8 {[%clk 0:00:45.9]} 23. c5 {[%clk 0:01:00]} 23... Qb5
{[%clk 0:00:43.7]} 24. Be5 {[%clk 0:00:56.3]} 24... Bc6 {[%clk 0:00:38.1]} 25.
Qe2 {[%clk 0:00:55]} 25... Rg5 {[%clk 0:00:33.9]} 26. f3 {[%clk 0:00:49.4]}
26... Rd8 {[%clk 0:00:25.8]} 27. h4 {[%clk 0:00:44.5]} 27... Rf5 {[%clk
0:00:24.9]} 28. Bg3 {[%clk 0:00:18.4]} 28... Bd5 {[%clk 0:00:21.3]} 29. Be5
{[%clk 0:00:15.5]} 29... Bc4 {[%clk 0:00:20.2]} 30. Qe4 {[%clk 0:00:13]} 30...
Rd5 {[%clk 0:00:16.3]} 31. Bg3 {[%clk 0:00:09.9]} 31... Rd7 {[%clk 0:00:12.3]}
32. Rfe1 {[%clk 0:00:08.3]} 32... Bd5 {[%clk 0:00:10.9]} 33. Qe2 {[%clk
0:00:07.6]} 33... Qc4 {[%clk 0:00:09.5]} 34. Nf4 {[%clk 0:00:03.1]} 34... Qxe2
{[%clk 0:00:09.1]} 35. Rxe2 {[%clk 0:00:03.6]} 35... Bb3 {[%clk 0:00:07.9]} 36.
Rdd2 {[%clk 0:00:02.8]} 36... Bc4 {[%clk 0:00:07.7]} 37. Re1 {[%clk 0:00:02.5]}
37... d3 {[%clk 0:00:07.1]} 38. Nxe6 {[%clk 0:00:02]} 38... Re7 {[%clk 0:00:06]}
0-1

[Event "*** Titled Tuesday Blitz"]
[Site "Chess.com"]
[Date "2020.04.07"]
[Round "1"]
[White "Batica1984"]
[Black "Alopekos"]
[Result "1-0"]
[WhiteElo "2838"]
[BlackElo "2441"]
[TimeControl "180+1"]
[EndTime "13:07:32 PDT"]
[Termination "Batica1984 won on time"]

1. e4 {[%clk 0:03:00.4]} 1... e5 {[%clk 0:02:58.7]} 2. Nf3 {[%clk 0:03:00]} 2...
Nc6 {[%clk 0:02:58.8]} 3. Bb5 {[%clk 0:02:59.8]} 3... a6 {[%clk 0:02:57.2]} 4.
Ba4 {[%clk 0:02:58.8]} 4... Nf6 {[%clk 0:02:56.8]} 5. O-O {[%clk 0:02:57.9]}
5... b5 {[%clk 0:02:56.9]} 6. Bb3 {[%clk 0:02:57.2]} 6... Bc5 {[%clk 0:02:57.8]}
7. a4 {[%clk 0:02:55.7]} 7... Rb8 {[%clk 0:02:55.5]} 8. c3 {[%clk 0:02:55.2]}
8... O-O {[%clk 0:02:54.2]} 9. d4 {[%clk 0:02:54.3]} 9... Bb6 {[%clk 0:02:54.8]}
10. Re1 {[%clk 0:02:33.3]} 10... d6 {[%clk 0:02:51.5]} 11. h3 {[%clk 0:02:32.9]}
11... Re8 {[%clk 0:02:42.4]} 12. d5 {[%clk 0:02:03.9]} 12... Na5 {[%clk
0:02:30.3]} 13. Bc2 {[%clk 0:02:01]} 13... c6 {[%clk 0:02:20]} 14. b4 {[%clk
0:01:53.4]} 14... Nc4 {[%clk 0:02:19.9]} 15. dxc6 {[%clk 0:01:53.6]} 15... h6
{[%clk 0:02:11.8]} 16. axb5 {[%clk 0:01:52.7]} 16... axb5 {[%clk 0:02:12.7]} 17.
Nbd2 {[%clk 0:01:50]} 17... Nxd2 {[%clk 0:01:44.6]} 18. Bxd2 {[%clk 0:01:50.9]}
18... Qc7 {[%clk 0:01:43.3]} 19. Qe2 {[%clk 0:01:47.3]} 19... Qxc6 {[%clk
0:01:42.6]} 20. Bd3 {[%clk 0:01:46]} 20... Bd7 {[%clk 0:01:42.4]} 21. c4 {[%clk
0:01:30.6]} 21... Qb7 {[%clk 0:01:11.7]} 22. Rac1 {[%clk 0:01:04.4]} 22... Rec8
{[%clk 0:01:02.5]} 23. cxb5 {[%clk 0:00:59.7]} 23... Rxc1 {[%clk 0:00:48]} 24.
Rxc1 {[%clk 0:01:00.6]} 24... Bd8 {[%clk 0:00:48.4]} 25. Nh4 {[%clk 0:00:57.3]}
25... Bxb5 {[%clk 0:00:38.1]} 26. Bxb5 {[%clk 0:00:56.5]} 26... Qxb5 {[%clk
0:00:38.1]} 27. Qxb5 {[%clk 0:00:56.5]} 27... Rxb5 {[%clk 0:00:38.2]} 28. Rc8
{[%clk 0:00:56.7]} 28... Nxe4 {[%clk 0:00:33.4]} 29. Rxd8+ {[%clk 0:00:54.7]}
29... Kh7 {[%clk 0:00:33.3]} 30. Be1 {[%clk 0:00:53.5]} 30... d5 {[%clk
0:00:32.8]} 31. Nf3 {[%clk 0:00:53]} 31... d4 {[%clk 0:00:22.7]} 32. Kf1 {[%clk
0:00:50.8]} 32... f6 {[%clk 0:00:17.7]} 33. Ke2 {[%clk 0:00:49.8]} 33... Rb6
{[%clk 0:00:12.9]} 34. Kd3 {[%clk 0:00:47]} 34... Nd6 {[%clk 0:00:13.1]} 35. Kc2
{[%clk 0:00:45.5]} 35... Rc6+ {[%clk 0:00:08]} 36. Kb3 {[%clk 0:00:44.5]} 36...
d3 {[%clk 0:00:08.5]} 37. Nd2 {[%clk 0:00:35.8]} 37... Nf5 {[%clk 0:00:03.2]}
38. b5 {[%clk 0:00:31.5]} 38... Rb6 {[%clk 0:00:01.6]} 39. Kc4 {[%clk
0:00:30.1]} 1-0